bitfinex/quotes_ETHUSD_20250519
["timestamp","ask_amount","ask_price","bid_price","bid_amount"]
[1747643656835,0.1,2399.9,2399.8,3.56709606]
[1747643657020,0.1,2399.9,2399.8,0.7858]
[1747643657219,0.1,2399.9,2399.8,9.8568]
[1747643657854,0.1,2399.9,2399.8,14.02381391]
[1747643658010,0.1,2399.9,2399.8,9.8568]
[1747643659024,0.1,2399.9,2399.8,14.02381391]
[1747643659224,0.1,2399.9,2399.8,16.74961268]
[1747643661311,0.1,2399.9,2399.8,16.98215189]
[1747643661949,0.1,2399.9,2399.8,17.53215189]
[1747643662120,0.1,2399.9,2399.8,25.53215189]
[1747643663069,0.1,2400.9,2400.8,4.96197824]
[1747643663231,0.1,2400.9,2400.8,24.04836128]
[1747643663556,0.1,2400.9,2400.8,24.00671705]
[1747643663850,0.1,2400.9,2400.8,5.87471705]
[1747643664016,0.1,2400.9,2400.8,24.00671705]
[1747643664745,0.1,2400.9,2400.8,24.55671705]
[1747643665559,0.1,2400.9,2400.8,24.55171705]
[1747643665849,0.1,2400.9,2400.8,32.55171705]
[1747643666029,0.1,2400.9,2400.8,32.78343626]
[1747643666348,0.1,2400.9,2400.8,24.78343626]
[1747643666856,0.1,2400.9,2400.8,6.65643626]
[1747643667446,0.1,2400.9,2400.8,24.78243626]
[1747643668552,0.1,2400.9,2400.8,1.94115802]
[1747643668752,0.1,2400.9,2400.8,9.29971921]
[1747643669531,0.1,2400.9,2400.8,9.068]
[1747643669737,0.1,2400.9,2400.8,13.23327824]
[1747643672019,0.1,2400.9,2400.8,22.28527824]
[1747643672433,0.1,2400.9,2400.8,18.12]
[1747643672748,0.1,2400.9,2400.8,19.66597677]
[1747643672949,0.1,2400.9,2400.8,23.83125501]
[1747643673343,0.1,2400.9,2400.8,22.28427824]
[1747643674137,0.1,2400.9,2400.8,23.03757824]
[1747643674539,0.1,2400.9,2400.8,23.58757824]
[1747643674942,0.1,2400.9,2400.8,9.8213]
[1747643675136,0.1,2400.9,2400.8,13.98657824]
[1747643677034,0.1,2400.9,2400.8,9.068]
[1747643677221,0.1,2400.9,2400.8,18.114]
[1747643677426,0.1,2400.9,2400.8,22.27927824]
[1747643679783,0.1,2400.9,2400.8,18.112]
[1747643680384,0.1,2400.9,2400.8,22.27727824]
[1747643681779,0.1,2400.9,2400.6,18.7983]
[1747643681982,4.26519693,2400.9,2400.7,9.044]
[1747643682155,4.26519693,2400.9,2400.7,18.087]
[1747643682382,0.1,2400.9,2400.7,18.087]
[1747643682682,0.1,2400.9,2400.7,9.044]
[1747643683685,4.16545174,2400.7,2400.6,17.993]
[1747643683871,0.788,2400.8,2400.2,0.28593539]
[1747643683872,4.95414589,2400.3,2400.2,0.28593539]
[1747643684249,13.99614589,2400.3,2400.2,0.28593539]
[1747643684450,21.99614589,2400.3,2400.2,0.28593539]
[1747643684667,30.81614589,2400.3,2400.2,0.28593539]
[1747643684984,34.91433859,2400.3,2400.2,0.28593539]
[1747643685148,4.16649306,2400.1,2399.2,4.16803779]
[1747643685355,4.16723013,2399.7,2399.2,4.16803779]
[1747643686592,4.16711005,2399.8,2399.3,4.16783243]
[1747643687000,4.16695014,2399.9,2399.1,27.029]
[1747643687154,4.16701599,2399.8,2399.3,4.16773835]
[1747643687353,4.16701599,2399.8,2399.4,4.16769477]
[1747643687577,4.16701599,2399.8,2399.3,4.16778216]
[1747643687773,4.16690797,2399.9,2399.1,27.029]
[1747643687993,4.9844898,2400.0,2399.1,27.029]
[1747643688293,0.8177,2400.0,2399.3,0.55]
[1747643688592,9.1016,2400.3,2400.0,4.16661189]
[1747643688753,9.1016,2400.3,2399.6,4.16736122]
[1747643688754,4.99782024,2400.3,2399.8,4.16693969]
[1747643690156,0.8316,2400.3,2399.9,4.16683857]
[1747643690488,4.9978493,2400.3,2399.8,4.16695847]
[1747643690688,2.54799064,2400.3,2399.3,0.7587]
[1747643690867,4.16709833,2399.8,2399.3,4.16776745]
[1747643691064,4.16711517,2399.8,2399.3,4.16776745]
[1747643691758,0.8232,2399.7,2399.3,4.16776745]
[1747643691958,4.16737297,2399.6,2399.1,27.031]
[1747643692173,4.16737297,2399.6,2399.1,31.19908982]
[1747643692490,4.16737297,2399.6,2399.2,3.61261247]
[1747643692687,4.16780069,2399.4,2399.0,9.047]
[1747643692989,4.16770199,2399.5,2399.0,13.21539899]
[1747643693961,0.8232,2399.7,2399.0,9.047]
[1747643694168,0.7758,2399.2,2398.8,18.084]
[1747643694381,0.7758,2399.2,2398.8,22.25263609]
[1747643694580,0.7758,2399.2,2398.8,24.92337447]
[1747643695067,4.16826808,2399.1,2398.8,11.71773838]
[1747643695267,0.7758,2399.2,2398.8,11.71773838]
[1747643695576,4.16823524,2399.1,2398.8,11.71773838]
[1747643695897,4.94395166,2399.2,2398.8,11.71773838]
[1747643696111,0.7758,2399.2,2398.8,15.88645107]
[1747643696613,4.94390586,2399.2,2398.8,15.88645107]
[1747643696914,4.16823667,2399.1,2398.8,9.047]
[1747643697064,4.94395176,2399.2,2398.8,9.047]
[1747643697463,4.16832038,2399.1,2398.8,9.047]
[1747643697913,4.16822975,2399.1,2398.8,9.047]
[1747643698405,4.94391265,2399.2,2398.8,9.047]
[1747643698713,4.16777841,2399.4,2398.9,4.1684447]
[1747643698912,4.16789811,2399.3,2398.8,15.85775317]
[1747643699271,4.16815777,2399.2,2398.8,11.68909132]
[1747643699476,4.16815777,2399.2,2398.8,9.047]
[1747643699780,4.16820946,2399.2,2398.8,9.047]
[1747643700099,4.16818983,2399.2,2398.7,4.16881242]
[1747643700271,4.16813685,2399.2,2398.7,4.16881242]
[1747643700603,4.16813685,2399.2,2398.7,4.16876064]
[1747643700903,4.16813685,2399.2,2398.8,4.16874848]
[1747643701068,4.168238,2399.1,2398.7,4.16882058]
[1747643701272,4.16814717,2399.2,2398.7,4.16882058]
[1747643701606,4.16814717,2399.2,2398.8,4.16874466]
[1747643702623,4.16829757,2399.1,2398.6,9.049]
[1747643702786,4.16865891,2398.9,2398.6,11.83027]
[1747643702973,4.94609459,2399.0,2398.6,9.049]
[1747643703309,0.7776,2399.0,2398.7,4.16889586]
[1747643703622,0.7776,2399.4,2399.0,4.16834308]
[1747643703828,4.16636615,2400.2,2399.2,4.16792203]
[1747643703829,0.7776,2399.7,2399.2,4.16792203]
[1747643703987,0.7776,2399.7,2399.3,4.16780835]
[1747643704172,0.7776,2399.7,2399.4,4.16762812]
[1747643704376,0.7776,2400.0,2399.5,4.16751908]
[1747643704614,4.94436848,2400.0,2399.6,4.16733786]
[1747643704775,4.94436848,2400.0,2399.5,4.16737518]
[1747643705198,4.16685017,2399.9,2399.5,4.16737518]
[1747643705510,4.94435086,2400.0,2399.5,4.16737518]
[1747643706009,0.8138,2400.2,2399.6,0.83350838]
[1747643706196,4.98025534,2400.2,2399.7,4.16711813]
[1747643706800,4.16657106,2400.1,2399.6,0.83350838]
[1747643707006,4.16677258,2400.0,2399.4,4.16766681]
[1747643707313,4.16677258,2400.0,2399.5,4.16743463]
[1747643707609,4.16649306,2400.1,2399.5,4.16743463]
[1747643707610,4.16660435,2400.1,2399.6,4.16735677]
[1747643707827,4.98019178,2400.2,2399.3,9.8079]
[1747643707828,0.8138,2400.2,2400.0,4.16663445]
[1747643708023,4.16660291,2400.1,2399.3,9.8079]
[1747643708342,4.16743878,2399.6,2399.3,0.7579]
[1747643708617,4.16743878,2399.6,2398.5,4.16910384]
[1747643708618,8.0,2399.9,2399.0,0.7825]
[1747643708827,4.16745572,2399.6,2399.1,4.16822661]
[1747643708999,4.16745572,2399.6,2399.0,23.02688293]
[1747643709000,12.16691371,2399.9,2399.3,4.16776678]
[1747643709200,4.16710881,2399.8,2399.3,4.16776678]
[1747643709395,0.7624,2400.0,2399.5,4.16744977]
[1747643709724,4.92908876,2400.0,2399.6,4.16726038]
[1747643710112,4.16684613,2399.9,2399.5,4.16745123]
[1747643710312,4.16749409,2399.6,2399.2,9.05]
[1747643710685,4.1675358,2399.5,2399.2,9.05]
[1747643710925,0.7746,2399.8,2399.2,9.05]
[1747643711088,0.7746,2399.3,2398.9,9.05]
[1747643711288,0.7746,2399.3,2398.7,23.03221006]
[1747643711493,4.16814417,2399.2,2398.7,23.03221006]
[1747643711736,0.7746,2399.5,2399.1,4.16815968]
[1747643711891,0.7746,2399.7,2399.3,4.16786439]
[1747643712229,0.7746,2399.7,2399.3,4.16778812]
[1747643713127,4.94189272,2399.7,2399.2,23.0043178]
[1747643713293,4.94189272,2399.7,2399.3,4.16786149]
[1747643713495,0.7746,2399.7,2399.3,4.16786149]
[1747643714841,4.94194542,2399.7,2399.2,23.00426494]
[1747643714994,4.94194542,2399.7,2399.2,4.95726494]
[1747643715340,4.94194542,2399.7,2399.3,4.16785613]
[1747643715540,0.7746,2399.7,2399.3,4.16785613]
[1747643715740,0.76734828,2399.7,2399.3,4.16785613]
[1747643715943,0.76734828,2399.7,2399.3,4.16773923]
[1747643716097,4.16661711,2400.1,2399.6,4.16728126]
[1747643716303,4.1667633,2400.0,2399.5,4.16743848]
[1747643716538,4.16685217,2399.9,2399.5,4.16743848]
[1747643716733,4.16671131,2400.0,2399.6,4.16734793]
[1747643716940,12.16623326,2400.3,2399.8,4.16689735]
[1747643717253,4.16614589,2400.3,2399.4,18.043]
[1747643717399,4.1667897,2400.0,2399.5,4.16744889]
[1747643717600,4.16697542,2399.9,2399.4,22.21063464]
[1747643717801,4.16640623,2400.2,2399.7,4.16715319]
[1747643718347,4.1662529,2400.3,2399.8,4.16700742]
[1747643718543,4.16632745,2400.2,2399.8,4.16700742]
[1747643718912,4.93830436,2400.3,2399.7,4.94232305]
[1747643719115,4.93830436,2400.3,2399.8,4.16690263]
[1747643719324,4.16648835,2400.2,2399.7,4.94231355]
[1747643719647,4.16648835,2400.2,2399.7,4.94221802]
[1747643719802,4.16648835,2400.2,2399.7,4.94231219]
[1747643719999,4.16648835,2400.2,2399.8,4.16699979]
[1747643720203,4.93833192,2400.3,2399.8,4.16699979]
[1747643720433,0.7721,2400.3,2399.7,4.94229126]
[1747643720636,4.16639309,2400.2,2399.7,4.94229126]
[1747643720953,4.16639309,2400.2,2399.7,5.85324979]
[1747643721131,4.16639309,2400.2,2399.7,14.87624979]
[1747643721330,4.16653719,2400.1,2399.7,1.68615853]
[1747643721537,4.16765012,2399.5,2399.1,0.7832]
[1747643721737,4.16786976,2399.4,2399.1,0.7832]
[1747643722049,4.1676132,2399.5,2399.1,0.7832]
[1747643722761,4.16736122,2399.6,2399.0,4.555007]
[1747643722762,4.16788229,2399.3,2399.0,0.38667287]
[1747643723957,4.1681615,2399.2,2398.7,4.93082254]
[1747643724734,8.0,2399.5,2398.7,0.7619]
[1747643724978,4.16875104,2398.8,2398.4,0.28593539]
[1747643725126,4.16919288,2398.6,2398.4,0.28593539]
[1747643725873,4.16927246,2398.5,2398.4,0.28593539]
[1747643726030,4.16907731,2398.7,2398.5,0.0032211]
[1747643726461,0.8257,2398.9,2398.5,0.0032211]
[1747643726646,4.16883605,2398.8,2398.5,0.0032211]
[1747643727639,4.16893606,2398.7,2398.5,0.0032211]
[1747643728342,4.16909864,2398.6,2398.5,0.0032211]
[1747643728663,4.16901844,2398.7,2398.5,0.0032211]
[1747643729277,4.1688336,2398.8,2398.5,0.0032211]
[1747643729456,4.16837758,2399.1,2398.6,4.1690182]
[1747643729860,4.1675349,2399.5,2398.8,4.16860329]
[1747643730035,4.16796776,2399.3,2398.9,4.16853088]
[1747643730429,4.16796776,2399.3,2398.8,4.16867436]
[1747643730631,4.99953401,2399.5,2398.9,4.16844191]
[1747643730879,0.8199,2399.7,2398.8,0.04167832]
[1747643731082,0.8199,2399.7,2399.3,4.16786478]
[1747643731385,4.16708915,2399.8,2399.7,0.00453095]
[1747643732156,16.59742083,2399.8,2399.7,0.00453095]
[1747643734143,17.14742083,2399.8,2399.7,0.00453095]
[1747643735368,4.16909864,2398.6,2398.5,0.0032211]
[1747643735535,25.86503032,2398.6,2398.5,0.0032211]
[1747643735884,33.86503032,2398.6,2398.5,0.0032211]
[1747643736035,34.62263032,2398.6,2398.5,0.0032211]
[1747643736228,42.88563577,2398.6,2398.5,0.0032211]
[1747643736434,46.98382847,2398.6,2398.5,0.0032211]
[1747643736885,47.53382847,2398.6,2398.5,0.0032211]
[1747643738073,12.98084178,2398.0,2397.9,0.17949319]
[1747643738393,49.55984178,2398.0,2397.9,0.17949319]
[1747643738583,53.47759219,2398.0,2397.9,0.17949319]
[1747643738869,4.17153345,2397.2,2397.1,0.1]
[1747643739078,4.17118447,2397.5,2397.1,0.1]
[1747643739234,4.17090382,2397.6,2397.1,0.1]
[1747643739434,4.17102035,2397.5,2397.1,4.27162614]
[1747643739726,22.73045041,2398.0,2397.1,1.0228314]
[1747643739969,22.17222906,2398.0,2397.5,4.17098712]
[1747643740168,4.17035982,2397.9,2397.5,0.7834]
[1747643741458,4.16299603,2397.9,2397.5,0.7834]
[1747643741769,4.16978407,2398.3,2397.8,4.1704528]
[1747643741927,4.16980614,2398.2,2397.8,4.17044985]
[1747643742128,4.16971724,2398.3,2397.5,0.7834]
[1747643742333,4.16971724,2398.3,2397.8,4.17037637]
[1747643742533,4.16971724,2398.3,2397.9,4.17028454]
[1747643742767,4.16948522,2398.4,2397.9,4.17028454]
[1747643742981,4.16935758,2398.5,2398.0,4.17000393]
[1747643743132,13.8810927,2398.6,2398.0,4.17000393]
[1747643743133,4.16961018,2398.4,2398.0,0.7738]
[1747643743446,4.1693183,2398.5,2398.0,0.7738]
[1747643743648,4.16955356,2398.4,2398.0,0.7738]
[1747643744337,4.16937358,2398.5,2398.0,4.94391728]
[1747643744739,4.16945385,2398.4,2398.0,4.94391728]
[1747643744940,4.16945385,2398.4,2398.0,0.7738]
[1747643746075,4.16945385,2398.4,2398.0,4.94393506]
[1747643746245,4.16962333,2398.3,2398.0,0.7738]
[1747643746647,7.24175263,2398.5,2398.1,4.16994971]
[1747643746851,4.16933358,2398.5,2398.1,4.16994971]
[1747643747051,18.006,2398.7,2398.1,4.16994971]
[1747643747246,18.006,2398.7,2398.0,4.94384543]
[1747643747447,4.16923233,2398.6,2398.0,4.94384543]
[1747643747753,4.16934505,2398.5,2398.1,4.16996294]
[1747643747942,4.16934505,2398.5,2398.0,4.94384803]
[1747643748140,17.997,2398.8,2398.1,4.16988798]
[1747643748345,4.1693361,2398.5,2398.1,4.16995031]
[1747643748547,4.1693361,2398.5,2398.0,6.75535368]
[1747643748989,4.16915973,2398.6,2398.0,6.75535368]
[1747643748990,4.16952652,2398.4,2398.0,0.7738]
[1747643749295,4.1697156,2398.3,2398.0,0.7738]
[1747643749657,4.16950252,2398.4,2398.0,0.7738]
[1747643749861,4.16939021,2398.5,2398.1,4.1699531]
[1747643750057,4.16922924,2398.6,2398.0,4.94387272]
[1747643750257,4.16937273,2398.5,2398.0,7.23772055]
[1747643750569,8.993,2398.8,2398.0,3.06768727]
[1747643750570,13.16176656,2398.8,2398.0,3.06768727]
[1747643750774,4.16951562,2398.4,2398.0,0.7738]
[1747643751138,4.16975417,2398.3,2398.0,0.7738]
[1747643751338,3.66793168,2398.6,2398.0,4.94377824]
[1747643751339,4.16941292,2398.5,2398.0,4.94377824]
[1747643751583,4.16941292,2398.5,2398.0,4.94378885]
[1747643751754,3.66793168,2398.6,2398.0,0.7738]
[1747643752070,4.16934933,2398.5,2398.0,4.94386989]
[1747643752275,4.16934933,2398.5,2398.1,4.16996112]
[1747643752464,4.16945638,2398.4,2398.0,4.94387221]
[1747643752665,4.16945638,2398.4,2398.0,0.7738]
[1747643753044,4.16965453,2398.3,2398.0,0.7738]
[1747643753681,4.16990042,2398.2,2398.0,0.7738]
[1747643754262,4.1695517,2398.4,2398.0,0.7738]
[1747643754558,4.1695517,2398.4,2398.0,4.94393684]
[1747643754950,4.1695517,2398.4,2397.9,4.17014845]
[1747643755275,4.16930452,2398.5,2398.0,4.17004399]
[1747643755276,4.16936743,2398.5,2398.0,4.17004399]
[1747643755458,4.16951158,2398.4,2398.0,4.17004399]
[1747643755656,4.16963864,2398.3,2397.9,4.17020718]
[1747643755977,4.1702236,2398.0,2397.5,9.001]
[1747643756179,4.17035369,2397.9,2397.5,13.17193729]
[1747643756358,4.17025128,2398.0,2397.5,13.17193729]
[1747643756563,4.17025128,2398.0,2397.6,4.17082178]
[1747643757084,4.16988749,2398.2,2398.0,0.00724271]
[1747643757284,4.16996789,2398.1,2398.0,0.00724271]
[1747643757467,4.16989212,2398.2,2398.0,0.00724271]
[1747643757883,4.16966753,2398.3,2398.1,0.7757]
[1747643758188,4.16943281,2398.5,2398.1,0.7757]
[1747643758393,4.16902449,2398.7,2398.1,5.85793454]
[1747643758594,4.16902449,2398.7,2398.2,4.1697092]
[1747643759484,8.33812184,2398.7,2398.2,4.1697092]
[1747643759691,4.16902449,2398.7,2398.2,4.1697092]
[1747643759885,4.16883774,2398.8,2398.2,4.1697092]
[1747643759886,4.62717036,2398.9,2398.4,4.16930354]
[1747643760052,8.79577569,2398.9,2398.4,4.16930354]
[1747643760253,4.16877793,2398.8,2398.4,4.16930354]
[1747643760600,4.62717036,2398.9,2398.3,0.84428899]
[1747643760900,4.62717036,2398.9,2398.7,4.16877516]
[1747643761064,4.62717036,2398.9,2398.8,5.38822856]
[1747643761249,0.1,2399.9,2399.4,4.1675586]
[1747643761450,0.1,2399.9,2399.5,0.8241]
[1747643761720,0.1,2399.9,2398.9,4.94146598]
[1747643761915,4.16778604,2399.4,2399.1,9.001]
[1747643762247,4.16762691,2399.5,2399.1,9.001]
[1747643762448,4.15945059,2399.5,2399.1,9.001]
[1747643762649,4.992139,2399.5,2399.1,9.001]
[1747643763209,4.16736973,2399.6,2399.1,9.001]
[1747643763386,3.66793168,2399.7,2399.0,9.001]
[1747643763582,4.16830112,2399.1,2398.9,9.7739]
[1747643763787,4.16812123,2399.2,2398.9,9.001]
[1747643763958,4.16793197,2399.3,2398.9,9.001]
[1747643764157,4.16808955,2399.2,2398.9,9.001]
[1747643764952,5.00153446,2399.3,2398.9,9.001]
[1747643765152,5.00145422,2399.3,2398.9,13.16953185]
[1747643765395,0.83356693,2399.3,2398.9,13.16953185]
[1747643765798,4.16763323,2399.5,2399.0,4.16836881]
[1747643765960,4.16745428,2399.6,2399.2,4.16804589]
[1747643766161,4.1671177,2399.8,2399.3,4.16774283]
[1747643766453,4.26684202,2399.9,2399.4,8.999]
[1747643766766,4.26691488,2399.9,2399.4,13.16661465]
[1747643767289,0.1,2399.9,2399.6,4.16735666]
[1747643767494,0.1,2399.9,2399.7,4.16715565]
[1747643767703,0.1,2399.9,2399.8,13.14001391]
[1747643767887,0.1,2399.9,2399.8,15.42716511]
[1747643768198,0.1,2399.9,2399.8,15.97716511]
[1747643769603,0.1,2399.9,2399.8,15.97516511]
[1747643769800,0.1,2399.9,2399.8,13.96931391]
[1747643770005,0.1,2399.9,2399.8,22.96431391]
[1747643770166,0.1,2399.9,2399.8,0.8313]
[1747643770366,0.1,2399.9,2399.6,4.16724617]
[1747643770575,0.1,2399.9,2399.6,4.16736122]
[1747643770865,0.1,2399.9,2399.6,4.16729356]
[1747643771078,0.1,2399.9,2399.7,4.16716107]
[1747643771612,0.1,2399.9,2399.8,4.16701391]
[1747643771903,0.1,2399.9,2399.7,4.16710128]
[1747643772101,0.1,2399.9,2399.8,4.16701391]
[1747643772899,0.1,2399.9,2399.8,4.92801391]
[1747643773226,0.1,2399.9,2399.8,14.38752608]
[1747643773824,0.1,2399.9,2399.8,13.89401391]
[1747643775731,0.1,2399.9,2399.8,22.44401391]
[1747643777831,0.1,2399.9,2399.8,13.47801391]
[1747643778135,0.1,2399.9,2399.8,31.40301391]
[1747643779838,0.1,2399.9,2399.8,22.44301391]
[1747643780042,0.1,2399.9,2399.8,31.40001391]
[1747643780226,0.1,2399.9,2399.8,33.7682008]
[1747643782542,0.1,2399.9,2399.8,15.8462008]
[1747643782950,0.1,2399.9,2399.8,16.2602008]
[1747643784510,0.1,2399.9,2399.5,0.8238]
[1747643784749,0.1,2399.9,2399.5,13.13043164]
[1747643785042,0.1,2399.9,2399.5,13.13044638]
[1747643786151,0.1,2399.9,2399.6,4.1673332]
[1747643786314,0.1,2399.9,2399.7,4.16707247]
[1747643786511,0.1,2399.9,2399.6,4.16727873]
[1747643786748,4.16716247,2399.8,2399.2,0.8238]
[1747643787054,4.16726388,2399.7,2399.4,8.963]
[1747643787256,4.16736892,2399.6,2399.2,4.16793501]
[1747643787431,4.99497886,2399.7,2399.2,4.16793501]
[1747643787767,4.16761828,2399.5,2399.1,8.963]
[1747643787967,4.16747798,2399.6,2399.1,13.13120436]
[1747643788273,4.16746266,2399.6,2399.1,13.13114902]
[1747643788471,9.049,2399.9,2399.2,0.7558]
[1747643788472,0.1,2399.9,2399.2,0.7558]
[1747643788653,4.26692789,2399.9,2399.4,4.16761416]
[1747643788834,5.19295304,2399.9,2399.3,4.16786164]
[1747643789031,5.19295304,2399.9,2399.4,4.16760257]
[1747643789263,1.02602515,2399.9,2399.3,4.16778968]
[1747643789569,4.16739505,2399.6,2399.1,8.964]
[1747643789768,4.16739505,2399.6,2399.1,13.13219651]
[1747643790064,4.16737129,2399.6,2399.2,4.1680544]
[1747643790264,0.829,2399.8,2399.1,8.964]
[1747643790471,4.99616798,2399.8,2399.3,4.16779551]
[1747643790673,4.16722372,2399.7,2399.2,4.16798299]
[1747643790866,4.16737265,2399.6,2399.2,4.16798299]
[1747643791650,1.75530868,2399.8,2399.1,8.964]
[1747643791846,0.1,2399.9,2399.2,4.96695601]
[1747643792052,0.1,2399.9,2399.6,4.16726094]
[1747643792356,0.1,2399.9,2399.7,4.16704143]
[1747643792774,0.1,2399.9,2399.8,4.96591391]
[1747643792958,0.1,2399.9,2399.7,4.16714253]
[1747643793163,0.1,2399.9,2399.7,13.13114253]
[1747643793670,0.1,2399.9,2399.5,4.96636207]
[1747643793671,4.26688505,2399.9,2399.0,24.42567287]
[1747643793872,4.16730409,2399.7,2399.2,0.8079]
[1747643794043,4.16730409,2399.7,2399.3,4.16788039]
[1747643794870,0.1,2399.9,2399.4,4.16754609]
[1747643795070,0.1,2399.9,2399.8,4.16701391]
[1747643795243,0.1,2399.9,2399.8,5.52701391]
[1747643795437,0.1,2399.9,2399.8,13.52701391]
[1747643796266,0.1,2399.9,2399.8,5.75933955]
[1747643796576,0.1,2399.9,2399.8,23.66433955]
[1747643796762,0.1,2399.9,2399.8,26.54217048]
[1747643797168,0.1,2399.9,2399.8,26.77539371]
[1747643798352,0.1,2399.9,2399.8,17.28439371]
[1747643798551,0.1,2399.9,2399.8,23.34556278]
[1747643799891,0.1,2399.9,2399.8,23.89556278]
[1747643800090,0.1,2399.9,2399.8,31.89556278]
[1747643800593,0.1,2399.9,2399.8,37.93556278]
[1747643801295,0.1,2400.9,2400.8,4.16527824]
[1747643802688,0.1,2400.9,2400.8,5.97000718]
[1747643803099,0.1,2400.9,2400.8,6.20298046]
[1747643803905,0.1,2400.9,2400.8,15.13698046]
[1747643804074,0.1,2400.9,2400.8,13.09927824]
[1747643806103,0.1,2400.9,2400.8,4.16527824]
[1747643806286,0.1,2400.9,2400.8,13.09827824]
[1747643808615,0.1,2400.9,2400.8,13.64827824]
[1747643808799,0.1,2400.9,2400.8,6.91501099]
[1747643809000,4.26511004,2400.9,2400.8,0.23145664]
[1747643809515,0.1,2400.9,2400.8,0.23145664]
[1747643810691,0.1,2400.9,2400.6,4.16555866]
[1747643810897,4.26511795,2400.9,2400.5,4.16571492]
[1747643811124,0.1,2400.9,2400.5,4.16571492]
[1747643811416,0.1,2400.9,2400.6,4.16561152]
[1747643811616,4.16579879,2400.5,2400.4,0.29044903]
[1747643811818,4.92819879,2400.5,2400.4,0.29044903]
[1747643811989,21.86019879,2400.5,2400.4,0.29044903]
[1747643812188,4.16684819,2399.9,2399.6,0.29044903]
[1747643812416,4.16704461,2399.8,2399.6,0.29044903]
[1747643812604,4.16691954,2399.9,2399.6,0.29044903]
[1747643814617,4.16712275,2399.8,2399.6,0.29044903]
[1747643814919,4.16718756,2399.7,2399.6,0.29044903]
[1747643815091,4.95448756,2399.7,2399.6,0.29044903]
[1747643815622,0.7873,2399.7,2399.6,0.29044903]
[1747643816014,0.7873,2399.7,2399.3,13.09984793]
[1747643816527,0.7873,2399.7,2399.3,8.932]
[1747643816528,4.95451311,2399.7,2399.3,8.932]
[1747643816900,0.7686,2399.4,2398.6,0.821]
[1747643817221,0.7686,2399.4,2398.5,9.22444903]
[1747643817222,4.16848014,2399.0,2398.5,9.22444903]
[1747643817392,0.7686,2398.9,2398.6,4.16909511]
[1747643817837,0.7686,2398.9,2398.5,13.39365733]
[1747643818336,0.7686,2399.3,2398.5,16.1627716]
[1747643818538,3.66622986,2400.3,2398.8,0.55]
[1747643818738,13.70578944,2400.9,2400.0,4.16652651]
[1747643818910,4.16595215,2400.5,2400.0,4.16652651]
[1747643819111,0.7677,2400.6,2400.0,4.16652651]
[1747643819315,4.16604853,2400.4,2399.9,4.1667469]
[1747643819519,5.07601592,2400.4,2399.9,4.1667469]
[1747643820327,4.16631947,2400.2,2399.6,17.854]
[1747643820504,0.7797,2400.3,2399.6,17.854]
[1747643820699,4.1664183,2400.2,2399.7,4.16717767]
[1747643820905,4.1665606,2400.1,2399.6,22.02126597]
[1747643821425,4.16641893,2400.2,2399.7,4.16707881]
[1747643821741,4.16650373,2400.1,2399.6,22.02126625]
[1747643822039,4.16732587,2399.7,2399.4,17.852]
[1747643822250,4.16693473,2399.9,2399.4,22.01963642]
[1747643822409,4.6599482,2399.9,2399.4,22.01963642]
[1747643823115,4.6599482,2399.9,2399.4,13.10263642]
[1747643823311,0.49301347,2399.9,2399.2,17.992]
[1747643823626,4.16777991,2399.4,2398.9,17.851]
[1747643823945,0.8283,2399.2,2399.0,1.50270553]
[1747643824147,0.8283,2399.2,2398.8,22.31009589]
[1747643824345,4.99635924,2399.2,2398.8,22.31009589]
[1747643824545,0.8283,2399.2,2398.5,0.7714]
[1747643824720,4.16853537,2399.0,2398.5,4.16926885]
[1747643824917,0.8283,2399.2,2398.5,5.89665941]
[1747643825113,4.16827291,2399.1,2398.6,4.16902244]
[1747643825748,0.8283,2399.2,2398.8,4.16862833]
[1747643826063,4.16844851,2399.0,2398.5,14.81053099]
[1747643826216,4.16844851,2399.0,2398.5,1.72738695]
[1747643826548,4.16865235,2398.9,2398.4,13.10437041]
[1747643826942,0.8283,2399.2,2398.6,4.16897359]
[1747643827145,4.99648672,2399.2,2398.7,4.16884594]
[1747643827448,0.8283,2399.2,2398.5,0.04168577]
[1747643827651,4.94714507,2399.5,2399.0,4.1682656]
[1747643827860,3.38464305,2399.5,2399.1,4.16813715]
[1747643828061,4.99672173,2399.8,2399.2,4.16795288]
[1747643828261,0.8296,2399.8,2399.1,4.16812749]
[1747643828449,0.8296,2399.8,2399.0,9.7679]
[1747643828450,4.16779402,2399.4,2399.0,9.7679]
[1747643828650,4.99662273,2399.8,2398.7,0.8124]
[1747643828957,0.7997,2399.6,2398.9,8.937]
[1747643829324,4.16766146,2399.5,2399.0,4.1683654]
[1747643829524,4.16795669,2399.3,2398.9,8.937]
[1747643829758,4.16795669,2399.3,2398.9,13.1055647]
[1747643830554,4.16780088,2399.4,2398.9,13.1055647]
[1747643830755,0.7997,2399.6,2398.9,8.937]
[1747643830960,0.7997,2399.6,2399.2,4.16796425]
[1747643831164,4.96707067,2399.6,2399.2,4.16796425]
[1747643831759,0.7997,2399.6,2399.2,4.16796425]
[1747643833562,8.27,2400.8,2399.4,8.0]
[1747643833860,0.7745,2400.5,2399.6,0.7774]
[1747643834037,4.16606667,2400.4,2399.7,1.02790622]
[1747643834239,0.7745,2400.5,2399.8,17.818]
[1747643834441,4.16655865,2400.1,2399.7,4.16718107]
[1747643834757,4.16638467,2400.2,2399.6,13.07734526]
[1747643835060,4.94037878,2400.5,2399.9,4.16674418]
[1747643835228,4.1662325,2400.3,2399.7,0.04166652]
[1747643835557,0.7745,2400.5,2399.9,4.16678921]
[1747643835858,5.53808847,2400.4,2399.9,4.16678921]
[1747643836060,4.1662775,2400.3,2399.6,17.815]
[1747643836268,4.16645918,2400.2,2399.7,4.16704515]
[1747643836583,4.16645777,2400.2,2399.6,21.98225948]
[1747643836770,4.16646235,2400.2,2399.7,4.16714521]
[1747643837065,5.53802844,2400.4,2399.9,4.16672329]
[1747643837454,4.16615699,2400.3,2399.9,4.16672329]
[1747643837764,4.03734048,2400.6,2400.4,4.16588297]
[1747643837968,4.03734048,2400.6,2400.3,4.16602027]
[1747643838563,4.03734048,2400.6,2400.4,4.16592635]
[1747643838870,4.16605771,2400.4,2400.1,8.908]
[1747643839037,4.16608138,2400.4,2400.1,8.908]
[1747643839238,4.16631947,2400.2,2400.1,8.908]
[1747643839438,4.16631947,2400.2,2399.8,21.97798808]